bitfinex/quotes_SOLUSD_20251128
["timestamp","ask_amount","ask_price","bid_price","bid_amount"]
[1764340397330,16.308864,143.1,143.06,9.4509906]
[1764340397532,9.4509906,143.13,143.08,9.4509906]
[1764340397760,9.4509906,143.13,143.07,0.69]
[1764340397960,9.4509906,143.13,143.09,9.4509906]
[1764340398190,9.4509906,143.13,143.09,3.14]
[1764340398366,16.43673303,143.15,143.1,0.69]
[1764340398565,16.43673303,143.15,143.11,9.4509906]
[1764340398766,32.74559703,143.15,143.11,9.4509906]
[1764340398981,32.74559703,143.15,143.11,10.1609906]
[1764340399286,50.20979542,143.15,143.11,0.71]
[1764340399493,9.4509906,143.14,143.1,3.14]
[1764340399658,40.75880482,143.15,143.1,12.5909906]
[1764340399864,50.20979542,143.15,143.11,0.71]
[1764340400297,40.75880482,143.15,143.11,0.71]
[1764340400500,50.20979542,143.15,143.11,0.71]
[1764340400869,9.4509906,143.14,143.1,12.5909906]
[1764340401070,9.4509906,143.14,143.1,13.3009906]
[1764340401071,6.98665548,143.13,143.1,13.3009906]
[1764340401474,9.4509906,143.12,143.07,0.71]
[1764340401794,24.4532942,143.13,143.09,9.4509906]
[1764340401965,6.98665548,143.13,143.08,9.4509906]
[1764340402167,9.4509906,143.12,143.08,0.71]
[1764340402365,16.308864,143.12,143.08,3.85]
[1764340402573,25.7598546,143.12,143.08,10.1609906]
[1764340402796,16.308864,143.12,143.09,10.1609906]
[1764340402966,6.98616738,143.14,143.1,10.1609906]
[1764340403478,6.98616738,143.14,143.11,0.71]
[1764340403790,6.98616738,143.14,143.11,10.1609906]
[1764340403978,6.98616738,143.14,143.11,0.71]
[1764340404180,6.98616738,143.14,143.12,0.71]
[1764340404378,6.98616738,143.14,143.1,9.4509906]
[1764340404581,6.98616738,143.14,143.0,9.4509906]
[1764340404582,16.308864,143.1,143.03,6.99145193]
[1764340404799,9.4509906,143.06,143.01,10.1609906]
[1764340404966,6.989097,143.08,143.05,9.4509906]
[1764340405171,6.989097,143.08,143.06,9.4509906]
[1764340405582,6.989097,143.08,143.06,10.1609906]
[1764340405781,17.46929272,143.11,143.07,10.1609906]
[1764340405984,26.92028332,143.11,143.07,10.1609906]
[1764340406165,26.92028332,143.11,143.06,9.4509906]
[1764340406366,26.92028332,143.11,143.05,0.71]
[1764340406572,26.92028332,143.11,143.06,12.5909906]
[1764340406783,26.92028332,143.11,143.07,9.4509906]
[1764340407177,9.4509906,143.09,143.06,3.14]
[1764340407492,9.73531374,143.1,143.05,3.14]
[1764340407698,9.73531374,143.1,143.05,13.3009906]
[1764340407878,6.98860856,143.09,143.05,13.3009906]
[1764340408401,6.98860856,143.09,143.06,9.4509906]
[1764340408695,6.98860856,143.09,143.05,3.85]
[1764340408995,6.98860856,143.09,143.06,9.4509906]
[1764340409382,6.98860856,143.09,143.05,3.85]
[1764340409578,6.98860856,143.09,143.08,9.4509906]
[1764340409805,6.98860856,143.09,143.07,9.4509906]
[1764340410002,24.45954109,143.1,143.08,9.4509906]
[1764340410181,6.98812019,143.1,143.08,9.4509906]
[1764340410375,6.98812019,143.1,143.09,9.4509906]
[1764340410786,40.76569857,143.11,143.07,12.5909906]
[1764340410990,40.86569857,143.11,143.07,12.5909906]
[1764340411190,0.28432314,143.1,143.07,9.4509906]
[1764340411374,0.28432314,143.1,143.06,12.5909906]
[1764340412184,23.29692768,143.11,143.06,3.85]
[1764340412481,40.7660074,143.11,143.08,9.4509906]
[1764340412681,6.98714851,143.12,143.09,9.4509906]
[1764340412978,6.98616738,143.14,143.11,9.4509906]
[1764340413173,23.29503138,143.14,143.11,9.4509906]
[1764340413376,40.76044985,143.14,143.1,0.71]
[1764340413573,40.76044985,143.14,143.11,9.4509906]
[1764340413908,23.29503138,143.14,143.11,9.4509906]
[1764340414081,6.98571563,143.15,143.13,9.4509906]
[1764340414585,17.74526709,143.18,143.14,9.4509906]
[1764340414796,6.98470349,143.17,143.15,9.4509906]
[1764340414991,6.98470349,143.17,143.14,0.71]
[1764340415193,6.98470349,143.17,143.15,9.4509906]
[1764340415501,0.28432314,143.16,143.13,9.4509906]
[1764340416086,6.98567935,143.15,143.13,9.4509906]
[1764340416495,6.98567935,143.15,143.14,9.4509906]
[1764340417389,6.98567935,143.15,143.13,9.4509906]
[1764340417591,23.29360218,143.17,143.12,12.5909906]
[1764340417787,32.74459278,143.17,143.12,13.3009906]
[1764340417998,32.84459278,143.17,143.12,12.5909906]
[1764340418193,40.85536092,143.17,143.12,3.85]
[1764340418386,50.20635152,143.17,143.12,13.3009906]
[1764340419179,50.30635152,143.17,143.12,12.5909906]
[1764340419385,9.83531374,143.16,143.1,0.71]
[1764340419595,9.4509906,143.15,143.11,9.4509906]
[1764340420096,6.98616738,143.14,143.11,9.4509906]
[1764340421113,6.98616738,143.14,143.11,10.1709906]
[1764340421485,6.98616738,143.14,143.13,9.4509906]
[1764340421893,6.98616738,143.14,143.13,10.1709906]
[1764340422092,6.98519139,143.16,143.13,10.1709906]
[1764340422313,6.98519139,143.16,143.14,9.4509906]
[1764340422516,6.98519139,143.16,143.14,10.1709906]
[1764340423592,6.98519139,143.16,143.14,13.3109906]
[1764340424092,6.98519139,143.16,143.13,3.14]
[1764340424306,9.73531374,143.16,143.08,8.80994492]
[1764340424512,9.4509906,143.15,143.1,9.4509906]
[1764340424688,0.38432314,143.16,143.1,9.4509906]
[1764340424894,9.4509906,143.15,143.11,9.4509906]
[1764340425091,24.44646223,143.17,143.13,9.4509906]
[1764340425290,24.44646223,143.17,143.14,9.4509906]
[1764340425517,6.98470349,143.17,143.15,9.4509906]
[1764340425816,6.98470349,143.17,143.16,9.4509906]
[1764340426000,17.4574329,143.21,143.16,13.3109906]
[1764340426199,9.4509906,143.2,143.16,13.3109906]
[1764340426400,25.7598546,143.21,143.16,13.3109906]
[1764340426595,9.4509906,143.21,143.16,13.3109906]
[1764340426799,9.4509906,143.22,143.17,10.1709906]
[1764340426993,0.28432314,143.22,143.18,9.4509906]
[1764340427216,33.88721206,143.23,143.18,10.1709906]
[1764340427515,33.88721206,143.23,143.19,0.72]
[1764340427516,6.98177756,143.23,143.19,0.72]
[1764340427814,6.9811601,143.25,143.22,9.4509906]
[1764340428019,6.9811601,143.25,143.24,9.4509906]
[1764340428316,6.98031551,143.26,143.24,9.4509906]
[1764340428490,6.98031551,143.26,143.24,0.72]
[1764340428692,6.98031551,143.26,143.24,10.1709906]
[1764340429408,6.98031551,143.26,143.24,9.4509906]
[1764340429929,6.98031551,143.26,143.23,9.4509906]
[1764340430430,6.98031551,143.26,143.23,10.1709906]
[1764340430991,9.4509906,143.25,143.21,9.4509906]
[1764340431216,24.43110428,143.26,143.23,9.4509906]
[1764340431797,24.43110428,143.26,143.22,3.86]
[1764340432110,24.43110428,143.26,143.22,13.3109906]
[1764340432489,7.17982843,143.27,143.24,9.4509906]
[1764340432715,0.2,143.27,143.23,9.4509906]
[1764340432931,9.4509906,143.26,143.22,13.3109906]
[1764340433434,9.4509906,143.26,143.22,3.14]
[1764340433949,9.4509906,143.25,143.21,9.4509906]
[1764340434099,9.4509906,143.25,143.21,3.14]
[1764340434435,6.98129014,143.24,143.21,3.86]
[1764340434918,6.98129014,143.24,143.21,9.4509906]
[1764340435234,6.98129014,143.24,143.21,13.3109906]
[1764340435644,9.4509906,143.22,143.16,0.72]
[1764340435817,9.4509906,143.21,143.17,3.14]
[1764340436238,9.4509906,143.21,143.17,3.86]
[1764340436239,6.98324022,143.2,143.17,3.86]
[1764340436435,33.89233137,143.2,143.17,3.14]
[1764340437045,9.4509906,143.19,143.15,0.72]
[1764340437240,9.4509906,143.19,143.15,3.86]
[1764340437735,9.4509906,143.19,143.16,0.72]
[1764340437938,50.20119537,143.2,143.16,0.72]
[1764340438126,25.7598546,143.17,143.11,3.14]
[1764340438325,9.4509906,143.12,143.11,3.14]
[1764340438533,0.28432314,143.15,143.08,13.3109906]
[1764340438840,9.4509906,143.13,143.08,13.3109906]
[1764340439021,9.4509906,143.13,143.08,20.30002249]
[1764340439226,9.4509906,143.13,143.09,0.72]
[1764340440039,16.308864,143.16,143.12,9.4509906]
[1764340440239,16.308864,143.16,143.12,12.5909906]
[1764340440431,6.9852361,143.16,143.13,0.72]
[1764340440638,6.9852361,143.16,143.13,10.1709906]
[1764340440826,9.4509906,143.15,143.12,3.14]
[1764340441844,6.9852361,143.16,143.13,0.72]
[1764340442043,6.9852361,143.16,143.13,10.1709906]
[1764340442439,6.9852361,143.16,143.13,0.72]
[1764340442642,16.4362267,143.16,143.13,0.72]
[1764340443347,16.4362267,143.16,143.12,3.14]
[1764340443348,9.4509906,143.15,143.12,3.14]
[1764340443650,9.4509906,143.14,143.12,3.14]
[1764340444144,33.89920518,143.16,143.13,0.72]
[1764340444349,24.44821458,143.16,143.13,0.72]
[1764340444538,33.89920518,143.16,143.13,0.72]
[1764340444734,6.9852361,143.16,143.13,0.72]
[1764340445234,6.9852361,143.16,143.13,10.1709906]
[1764340445649,6.9852361,143.16,143.14,0.72]
[1764340446731,6.9852361,143.16,143.14,10.1709906]
[1764340446932,24.44545649,143.18,143.14,10.1709906]
[1764340447146,24.44545649,143.18,143.15,0.72]
[1764340447540,6.98458505,143.18,143.15,10.1709906]
[1764340447858,6.98458505,143.18,143.16,12.5909906]
[1764340448059,6.98458505,143.18,143.17,9.4509906]
[1764340448256,6.98458505,143.18,143.17,10.1709906]
[1764340448554,24.43792765,143.22,143.17,10.1709906]
[1764340448736,40.74679165,143.22,143.2,9.4509906]
[1764340449357,24.43792765,143.22,143.2,9.4509906]
[1764340449940,24.43792765,143.22,143.2,10.1709906]
[1764340450253,6.98188396,143.23,143.21,10.1709906]
[1764340450451,17.45342885,143.24,143.21,9.4509906]
[1764340450653,17.45342885,143.24,143.21,10.1309906]
[1764340450955,17.45342885,143.24,143.21,9.4509906]
[1764340451770,17.55342885,143.24,143.2,12.5909906]
[1764340452064,17.45342885,143.24,143.21,9.4509906]
[1764340452436,16.308864,143.22,143.21,9.4509906]
[1764340452636,16.308864,143.22,143.2,9.4509906]
[1764340454265,6.9827526,143.21,143.19,3.14]
[1764340454442,6.9827526,143.21,143.2,9.4509906]
[1764340454644,6.9827526,143.21,143.19,3.14]
[1764340454949,6.9827526,143.21,143.19,13.2709906]
[1764340455559,0.28432314,143.24,143.2,10.1309906]
[1764340455745,23.57447728,143.24,143.2,10.1309906]
[1764340456152,41.02770263,143.24,143.2,10.1309906]
[1764340456551,41.02770263,143.24,143.2,6.77086401]
[1764340456750,47.21856664,143.24,143.19,9.23086401]
[1764340457062,6.09086401,143.22,143.19,3.14]
[1764340458064,75.93415334,143.24,143.19,9.91086401]
[1764340458065,47.11856664,143.24,143.19,9.91086401]
[1764340458366,41.02770263,143.24,143.2,6.77086401]
[1764340458754,16.308864,143.24,143.2,6.09086401]
[1764340458947,23.29036414,143.24,143.21,6.77086401]
[1764340459148,6.98150014,143.24,143.21,6.77086401]
[1764340460184,30.5255895,143.24,143.19,18.72080893]
[1764340460462,6.09086401,143.22,143.19,3.82]
[1764340460664,22.39972801,143.23,143.19,0.68]
[1764340461494,22.39972801,143.2,143.15,0.68]
[1764340461764,22.39972801,143.2,143.14,6.98593713]
[1764340461765,0.28432314,143.19,143.12,3.14]
[1764340462068,22.39972801,143.17,143.13,0.68]
[1764340462270,6.98616738,143.14,143.12,3.14]
[1764340462456,13.07703139,143.14,143.12,3.14]
[1764340463342,0.1,143.13,143.09,8.80994492]
[1764340463548,16.308864,143.11,143.06,0.68]
[1764340463852,6.09086401,143.1,143.06,0.68]
[1764340464367,6.98860856,143.09,143.06,0.68]
[1764340464552,13.07947257,143.09,143.06,0.68]
[1764340464865,6.98860856,143.09,143.06,6.77086401]
[1764340465068,6.98860856,143.09,143.07,6.77086401]
[1764340465374,6.98860856,143.09,143.07,0.68]
[1764340465897,6.98860856,143.09,143.07,6.77086401]
[1764340466058,16.308864,143.11,143.08,6.09086401]
[1764340466253,16.308864,143.11,143.08,6.77086401]
[1764340466456,16.308864,143.11,143.09,6.77086401]
[1764340466869,6.98750146,143.12,143.1,0.68]
[1764340467472,30.54458585,143.13,143.09,6.09086401]
[1764340467673,30.54458585,143.13,143.1,0.68]
[1764340467881,8.80994492,143.2,143.1,0.68]
[1764340467882,44.91351231,143.19,143.12,6.09086401]
[1764340468054,6.09086401,143.18,143.13,6.09086401]
[1764340468250,34.91976576,143.19,143.14,6.09086401]
[1764340468251,41.01062977,143.19,143.14,6.09086401]
[1764340468458,17.46228433,143.17,143.13,8.80994492]
[1764340468647,6.98421567,143.18,143.15,6.09086401]
[1764340469058,6.98421567,143.18,143.15,6.77086401]
[1764340469272,6.98421567,143.18,143.15,6.09086401]
[1764340469685,6.19086401,143.17,143.11,0.68]
[1764340469883,6.09086401,143.17,143.13,6.09086401]
[1764340470180,24.44475485,143.18,143.14,6.09086401]
[1764340470593,6.47518715,143.17,143.12,6.09086401]
[1764340470872,16.308864,143.15,143.11,6.09086401]
[1764340471256,16.308864,143.15,143.11,6.77086401]
[1764340471576,23.29479788,143.15,143.11,6.77086401]
[1764340471780,40.75899627,143.15,143.11,6.77086401]
[1764340471952,23.29479788,143.15,143.12,0.68]
[1764340472148,23.29479788,143.15,143.11,6.77086401]
[1764340472352,40.75899627,143.15,143.11,6.77086401]
[1764340472574,23.29479788,143.15,143.12,0.68]
[1764340472977,23.29479788,143.15,143.11,6.09086401]
[1764340473173,23.29479788,143.15,143.11,6.77086401]
[1764340473576,16.308864,143.16,143.12,0.68]
[1764340473874,16.308864,143.16,143.11,6.09086401]
[1764340473875,38.29486432,143.16,143.11,6.09086401]
[1764340474177,6.09086401,143.14,143.1,6.09086401]
[1764340474387,6.09086401,143.14,143.09,9.23086401]
[1764340474570,6.09086401,143.14,143.09,3.82]
[1764340474879,6.09086401,143.14,143.09,9.91086401]
[1764340475273,6.19086401,143.14,143.09,9.91086401]
[1764340475478,24.45500278,143.12,143.06,0.68]
[1764340475669,24.45500278,143.12,143.07,14.90080893]
[1764340475977,13.07800766,143.12,143.07,6.09086401]
[1764340476176,6.37518715,143.11,143.07,6.09086401]
[1764340476500,6.37518715,143.11,143.07,6.77086401]
[1764340477079,24.45500278,143.12,143.07,6.77086401]
[1764340477276,24.45500278,143.12,143.08,0.68]
[1764340477277,30.54586679,143.12,143.08,0.68]
[1764340478372,30.54586679,143.12,143.05,8.80994492]
[1764340478679,6.09086401,143.08,143.04,9.23086401]
[1764340478860,6.09086401,143.07,143.04,3.14]
[1764340479060,6.37518715,143.08,143.04,3.14]
[1764340479255,24.13167294,143.09,143.05,0.68]
[1764340479461,6.09086401,143.08,143.04,9.91086401]
[1764340479661,6.09086401,143.08,143.05,0.68]
[1764340479881,6.09086401,143.08,143.04,9.91086401]
[1764340479882,6.98958551,143.07,143.04,9.91086401]
[1764340480185,6.98958551,143.07,143.04,3.82]
[1764340480386,6.98958551,143.07,143.04,9.91086401]
[1764340480562,6.98958551,143.07,143.05,0.71]
[1764340481679,13.08044952,143.07,143.04,3.14]
[1764340481880,6.09086401,143.06,143.02,8.80994492]
[1764340482185,6.09086401,143.06,143.0,3.14]
[1764340482384,6.09086401,143.05,143.0,9.23086401]
[1764340482584,6.37518715,143.06,143.01,6.80086401]
[1764340482792,16.308864,143.03,143.01,0.71]
[1764340482963,6.09086401,143.04,143.0,3.14]
[1764340483163,6.09086401,143.03,143.0,3.85]
[1764340483362,22.39972801,143.04,143.01,0.71]
[1764340484081,6.99154023,143.03,143.01,0.71]
[1764340484480,6.99154023,143.03,143.01,6.80086401]
[1764340484878,6.99154023,143.03,143.01,0.71]
[1764340485563,13.08240424,143.03,143.0,3.14]
[1764340485768,6.09086401,143.02,142.98,0.71]
[1764340485970,6.09086401,143.02,142.99,0.71]
[1764340486165,6.09086401,143.01,142.96,3.14]
[1764340486369,6.09086401,143.01,142.97,0.71]
[1764340486873,40.87925482,143.03,142.98,6.09086401]
[1764340486874,46.87011883,143.03,142.98,6.09086401]
[1764340487297,46.87011883,143.03,142.99,0.71]
[1764340487484,40.77925482,143.03,142.99,0.71]
[1764340487689,46.87011883,143.03,142.99,0.71]
[1764340488502,40.77925482,143.03,142.99,6.80086401]
[1764340488804,40.77925482,143.03,143.0,6.09086401]
[1764340488968,40.77925482,143.03,143.0,6.80086401]
[1764340489165,40.77925482,143.03,142.97,15.8040927]
[1764340489166,6.99154023,143.03,143.01,6.80086401]
[1764340489595,6.99154023,143.03,143.02,0.71]
[1764340489800,23.56698957,143.06,143.02,0.71]
[1764340489801,6.99100782,143.05,143.02,0.71]
[1764340490001,6.99020232,143.06,143.03,8.80994492]
[1764340490172,6.98938383,143.08,143.04,6.09086401]
[1764340490489,23.29758124,143.09,143.04,0.71]
[1764340490672,6.98871724,143.09,143.05,6.80086401]
[1764340490868,3.14,143.11,143.06,6.09086401]
[1764340490869,6.09086401,143.11,143.06,6.09086401]
[1764340491087,16.308864,143.11,143.07,6.09086401]
[1764340491289,22.39972801,143.11,143.07,0.71]
[1764340491595,6.98828658,143.1,143.07,0.71]
[1764340491783,24.45858706,143.1,143.07,0.71]
[1764340492099,6.98828658,143.1,143.07,0.71]
[1764340493492,24.45858706,143.1,143.07,0.71]
[1764340493892,6.98828658,143.1,143.07,6.80086401]
[1764340494282,6.98828658,143.1,143.08,0.71]
[1764340496070,6.98828658,143.1,143.06,6.09086401]
[1764340496273,6.98828658,143.1,143.04,3.14]
[1764340496274,6.09086401,143.09,143.04,3.14]
[1764340496601,30.54945107,143.1,143.06,6.80086401]
[1764340496899,6.98828658,143.1,143.06,6.80086401]
[1764340497101,6.98828658,143.1,143.07,0.71]
[1764340497301,30.64945107,143.1,143.05,6.09086401]
[1764340497806,6.09086401,143.08,143.04,9.94086401]
[1764340498098,6.09086401,143.08,143.04,3.85]
[1764340498296,22.39972801,143.07,143.04,3.14]
[1764340498680,22.39972801,143.07,143.04,3.85]
[1764340499181,23.29890984,143.07,143.04,3.85]
[1764340499382,16.308864,143.07,143.05,0.71]
[1764340499583,23.29845746,143.07,143.05,0.71]
[1764340500105,23.29845746,143.07,143.04,9.23086401]
[1764340500313,6.98922963,143.08,143.05,6.80086401]
[1764340500474,6.98922963,143.08,143.04,12.65994492]
[1764340500679,6.09086401,143.07,143.02,6.09086401]
[1764340500877,6.09086401,143.07,143.02,15.61080893]
[1764340501080,17.47274252,143.08,143.03,0.71]
[1764340501280,17.47274252,143.08,143.04,6.09086401]
[1764340501479,23.56360653,143.08,143.04,6.09086401]
[1764340501674,23.56360653,143.08,143.03,14.90080893]
[1764340501898,6.09086401,143.07,143.01,12.65994492]
[1764340502191,6.09086401,143.07,143.01,3.85]
[1764340502192,6.09086401,143.04,143.01,3.85]
[1764340502374,6.09086401,143.02,142.99,0.71]
[1764340502878,6.09086401,143.0,142.97,3.85]
[1764340503072,6.99349604,142.99,142.97,0.71]
[1764340503786,13.08436005,142.99,142.97,0.71]
[1764340503989,9.33086401,142.98,142.93,0.71]
[1764340504196,16.308864,142.96,142.93,6.80086401]
[1764340504387,16.308864,142.96,142.94,6.09086401]
[1764340504594,16.308864,142.96,142.94,0.71]
[1764340504793,16.308864,142.96,142.95,0.71]
[1764340504996,16.308864,142.96,142.94,0.71]
[1764340505188,6.99545295,142.95,142.94,0.71]
[1764340505698,6.99545295,142.95,142.92,0.71]
[1764340506398,13.08631696,142.95,142.92,0.71]
[1764340506783,16.308864,142.92,142.89,0.71]
[1764340507086,16.308864,142.92,142.87,6.09086401]
[1764340507286,24.48408533,142.95,142.9,0.71]
[1764340507487,30.57494934,142.95,142.9,6.80086401]
[1764340507689,30.57494934,142.95,142.9,0.71]
[1764340507887,30.57494934,142.95,142.91,0.71]
[1764340508294,16.308864,142.96,142.94,6.09086401]
[1764340508491,6.81086401,143.02,142.96,8.80994492]
[1764340508804,6.09086401,142.99,142.94,14.90080893]
[1764340509094,6.81086401,143.01,142.96,14.90080893]
[1764340509511,18.20345873,143.0,142.96,14.90080893]
[1764340509809,7.712518,143.01,142.96,8.80994492]
[1764340509990,0.72,143.0,142.96,14.90080893]
[1764340510390,0.72,143.0,142.97,6.09086401]
[1764340510805,7.71316901,143.0,142.97,6.09086401]
[1764340511005,0.72,143.0,142.97,6.09086401]
[1764340511996,7.71316423,143.0,142.97,6.09086401]
[1764340512202,0.72,143.0,142.97,6.09086401]
[1764340512402,7.71306634,143.0,142.97,6.09086401]
[1764340512610,13.08326073,143.02,142.97,6.09086401]
[1764340512784,13.08326073,143.02,142.99,6.09086401]
[1764340512785,0.7,143.02,142.99,6.09086401]
[1764340512987,6.99007775,143.06,143.02,8.80994492]
[1764340513190,0.7,143.06,143.02,14.90080893]
[1764340513390,0.7,143.05,143.02,14.90080893]
[1764340513718,0.7,143.06,143.02,18.04080893]
[1764340514054,0.7,143.09,143.05,6.09086401]
[1764340514201,0.7,143.07,143.02,3.14]
[1764340514396,0.7,143.07,143.04,8.80994492]
[1764340514714,0.7,143.07,143.04,14.90080893]
[1764340514933,0.7,143.09,143.05,6.09086401]
[1764340515220,0.7,143.08,143.05,6.09086401]
[1764340515426,0.7,143.08,143.06,8.80994492]
[1764340516706,23.29703787,143.1,143.06,14.90080893]
[1764340516905,7.68878303,143.09,143.06,14.90080893]
[1764340517117,7.68878303,143.09,143.04,3.14]
[1764340517319,0.7,143.08,143.04,3.14]
[1764340517522,0.7,143.08,143.05,8.80994492]
[1764340517723,6.79086401,143.08,143.05,8.80994492]
[1764340517922,6.79086401,143.08,143.03,9.23086401]
[1764340518101,0.7,143.07,143.03,9.23086401]
[1764340518421,0.7,143.07,143.03,3.14]
[1764340518724,0.7,143.07,143.03,12.58791651]
[1764340518907,9.44791651,143.04,142.99,11.94994492]
[1764340519118,9.44791651,143.03,142.99,11.94994492]
[1764340519607,0.7,143.02,142.99,11.94994492]
[1764340519927,10.14791651,143.04,143.0,8.80994492]
[1764340520120,0.7,143.03,143.0,8.80994492]
[1764340520418,9.44791651,143.02,142.99,3.14]
[1764340520619,10.14791651,143.03,142.99,3.14]
[1764340520917,6.992518,143.01,142.99,3.14]
[1764340521420,17.14043451,143.01,142.99,3.14]
[1764340521722,10.14791651,143.0,142.96,11.94994492]
[1764340521902,10.14791651,143.0,142.96,8.80994492]
[1764340522247,10.14791651,143.0,142.95,3.14]
[1764340522248,10.14791651,142.99,142.95,3.14]
[1764340522596,10.14791651,142.98,142.95,3.14]
[1764340523101,6.99447436,142.97,142.95,3.14]
[1764340524209,6.99447436,142.97,142.95,11.94994492]
[1764340524210,0.7,142.96,142.95,11.94994492]
[1764340524408,0.7,142.96,142.95,3.14]
[1764340524619,10.14791651,142.96,142.9,6.99783271]
[1764340524817,9.44791651,142.95,142.91,8.80994492]
[1764340525004,6.99594235,142.94,142.91,8.80994492]
[1764340525202,6.99594235,142.94,142.91,18.25786143]
[1764340526920,16.308864,142.97,142.92,9.44791651]
[1764340527120,43.7683656,143.03,142.95,8.80994492]
[1764340527121,17.008864,143.0,142.95,8.80994492]
[1764340527326,25.75678051,143.0,142.95,18.25786143]
[1764340527530,24.47210179,143.02,142.95,18.25786143]
[1764340527738,24.47210179,143.02,142.99,8.80994492]
[1764340527739,6.99202908,143.02,142.99,8.80994492]
[1764340527915,6.99202908,143.02,142.99,21.39786143]
[1764340528121,0.7,143.04,142.99,21.39786143]
[1764340528317,0.7,143.04,143.01,8.80994492]
[1764340529118,17.13914423,143.04,143.0,8.80994492]
[1764340529409,9.44791651,143.03,142.98,9.44791651]
[1764340529735,9.44791651,143.01,142.97,8.80994492]
[1764340530112,9.73223965,143.02,142.97,9.44791651]
[1764340530309,0.7,143.0,142.97,9.44791651]
[1764340530514,0.7,143.0,142.96,9.44791651]
[1764340530821,0.7,143.0,142.96,18.25786143]
[1764340531021,6.99349604,142.99,142.96,18.25786143]
[1764340531629,7.69349604,142.99,142.96,8.80994492]
[1764340531828,0.7,142.98,142.95,3.14]
[1764340532037,0.7,142.98,142.93,6.99633479]
[1764340532038,9.44791651,142.96,142.86,6.99986]
[1764340532216,9.44791651,142.94,142.89,9.44791651]
[1764340532418,9.44791651,142.93,142.9,3.14]
[1764340533041,0.7,142.92,142.9,3.14]
[1764340533222,17.14518785,142.92,142.9,3.14]
[1764340533422,9.44791651,142.91,142.85,9.54791651]
[1764340533624,9.44791651,142.9,142.86,3.14]
[1764340534025,10.14791651,142.9,142.87,8.80994492]
[1764340534226,0.7,142.9,142.87,8.80994492]
[1764340534521,0.98432314,142.93,142.87,18.25786143]
[1764340534734,9.44791651,142.91,142.87,8.80994492]
[1764340534939,16.308864,142.94,142.87,8.80994492]
[1764340535122,0.7,142.94,142.9,9.44791651]
[1764340535326,10.14791651,142.96,142.91,21.39786143]
[1764340535741,0.7,142.95,142.91,21.39786143]
[1764340536143,10.14791651,142.95,142.91,11.94994492]
[1764340536322,0.7,142.95,142.91,21.39786143]
[1764340536521,0.7,142.94,142.91,21.39786143]
[1764340536730,0.7,142.94,142.92,9.44791651]
[1764340537121,10.14791651,142.94,142.91,3.14]
[1764340537330,6.99643181,142.93,142.91,3.14]
[1764340537622,7.69643181,142.93,142.91,3.14]
[1764340537830,0.7,142.92,142.91,3.14]
[1764340538223,6.99611736,142.94,142.91,21.39786143]
[1764340538438,7.69611736,142.94,142.91,11.94994492]
[1764340538833,0.7,142.93,142.91,3.14]
[1764340539148,10.14791651,142.93,142.89,8.80994492]
[1764340539337,10.14791651,142.93,142.88,12.58791651]
[1764340539338,6.99741095,142.91,142.88,12.58791651]
[1764340539529,6.99741095,142.91,142.88,3.14]
[1764340539728,0.7,142.9,142.88,3.14]
[1764340539919,9.44791651,142.92,142.88,3.14]
[1764340540125,0.98432314,142.94,142.9,9.44791651]
[1764340540532,0.7,142.93,142.9,9.44791651]
[1764340540725,7.69652401,142.93,142.89,8.80994492]
[1764340540926,7.69652401,142.93,142.9,9.44791651]
[1764340541150,0.7,142.92,142.89,8.80994492]
[1764340541334,0.7,142.92,142.89,18.25786143]
[1764340541653,7.69714411,142.92,142.89,18.25786143]
[1764340541848,6.99714411,142.92,142.89,18.25786143]
[1764340542050,10.14791651,142.91,142.88,3.14]
[1764340542259,0.7,142.91,142.88,3.14]
[1764340542550,6.99714411,142.92,142.89,8.80994492]
[1764340542751,7.69714411,142.92,142.89,18.25786143]
[1764340543249,6.99714411,142.92,142.89,18.25786143]
[1764340543438,7.69714411,142.92,142.89,8.80994492]
[1764340543744,0.7,142.91,142.89,8.80994492]
[1764340544423,6.99714411,142.92,142.89,8.80994492]
[1764340544628,0.7,142.91,142.89,8.80994492]
[1764340544846,6.99714411,142.92,142.89,8.80994492]
[1764340545148,7.69714411,142.92,142.89,18.25786143]
[1764340546039,6.99714411,142.92,142.9,9.44791651]
[1764340546438,24.48669612,142.94,142.91,8.80994492]
[1764340546648,6.99632469,142.94,142.92,9.44791651]
[1764340546951,6.99632469,142.94,142.93,9.44791651]
[1764340547134,6.99632469,142.94,142.92,9.44791651]